{"text_format":"1","workbook":"xlsx","n_sheets":5,"sheets":["Início","Anual","Mensal","Feriados","Comemorações"],"not_rendered":{"charts":0,"images":1,"macros":1,"external_links":1,"defined_names":42,"comments":2,"pivot_tables":0},"unopened":[],"bounds":{"document_bytes":16777216,"sheet_cells":100000,"rows_first":2000,"rows_last":500,"rows_between":2000,"halvings":0,"cell_chars":16384,"cell_head_chars":4096},"cells_cut":0,"cells_raw":0,"read":"whole","date_system":"1900"}

{"sheet":"Início","index":0,"n_rows":15,"n_cols":6,"rows_kept":15,"cut":false,"hidden":true,"merged":[[5,4,5,13],[7,4,7,13],[9,3,9,16],[11,5,11,16]]}
[null,null,null,null,null,"<"]
[]
[]
[]
[]
[null,null,null,null,"Atenção:"]
[]
[null,null,null,null,"A planilha encontra-se bloqueada antes do primeiro acesso."]
[null,null,null,"Clique em \"habilitar conteúdo\", \"Habillitar edição\" ou \"Habilitar Macros\" dependendo da sua versão. "]
[null,null,null,"Os botões estão na parte superior da tela e após este processo a planilha estará liberada para uso"]
[]
[null,null,null,null,null,"Problemas com o desbloqueio? Clique aqui e veja como resolver"]
[]
[null,"Após habilitá-las o conteúdo será exibido na barra aqui embaixo"]
[null,null,"?"]

{"sheet":"Anual","index":1,"n_rows":40,"n_cols":33,"rows_kept":40,"cut":false,"hidden":false,"merged":[[23,0,23,6],[23,8,23,14],[23,16,23,22],[32,16,32,22],[32,8,32,14],[32,0,32,6],[1,2,1,4],[5,8,5,14],[5,0,5,6],[5,16,5,22],[14,16,14,22],[14,8,14,14],[14,0,14,6]]}
["Calendário Permanente 2.1"]
["Ano:",null,2018,null,null,null,null,null,null,null,null,null,null,null,null,null,null,null,null,null,null,null,null,null,null,"Ano:",{"$f":"Ano","v":2018},"Feriados Nacionais:",true,"Datas Comemorativas:",true,"Feriados nos EUA:",true]
[]
["Calendário",null,null,null,null,null,null,null,null,null,null,null,null,null,null,null,null,null,null,null,null,null,{"$f":"TEXT(Ano,\"0000\")","v":"2018"}]
[]
[{"$f":"DATE(Ano,1,1)","v":"2018-01-01"},null,null,null,null,null,null,null,{"$f":"DATE(Ano,2,1)","v":"2018-02-01"},null,null,null,null,null,null,null,{"$f":"DATE(Ano,3,1)","v":"2018-03-01"}]
["D","S","T","Q","Q","S","S",null,{"$f":"A7","v":"D"},"S","T","Q","Q","S","S",null,{"$f":"I7","v":"D"},"S","T","Q","Q","S","S"]
[{"$f":"IF( WEEKDAY(_Jan1) = MOD(COLUMN(),8), _Jan1, 0 )","v":"00:00:00"},{"$f":"IF( A8>0, A8+1, IF( WEEKDAY(_Jan1)=MOD(COLUMN(),8), _Jan1, 0) )","v":"2018-01-01"},"2018-01-02","2018-01-03","2018-01-04","2018-01-05","2018-01-06",null,{"$f":"IF( WEEKDAY(_Fev1) = MOD(COLUMN(),8), _Fev1, 0 )","v":"00:00:00"},{"$f":"IF( I8>0, I8+1, IF( WEEKDAY(_Fev1)=MOD(COLUMN(),8), _Fev1, 0) )","v":"00:00:00"},"00:00:00","00:00:00","2018-02-01","2018-02-02","2018-02-03",null,{"$f":"IF( WEEKDAY(_Mar1) = MOD(COLUMN(),8), _Mar1, 0 )","v":"00:00:00"},{"$f":"IF( Q8>0, Q8+1, IF( WEEKDAY(_Mar1)=MOD(COLUMN(),8), _Mar1, 0) )","v":"00:00:00"},"00:00:00","00:00:00","2018-03-01","2018-03-02","2018-03-03"]
[{"$f":"G8+1","v":"2018-01-07"},{"$f":"A9+1","v":"2018-01-08"},"2018-01-09","2018-01-10","2018-01-11","2018-01-12","2018-01-13",null,{"$f":"O8+1","v":"2018-02-04"},{"$f":"I9+1","v":"2018-02-05"},"2018-02-06","2018-02-07","2018-02-08","2018-02-09","2018-02-10",null,{"$f":"W8+1","v":"2018-03-04"},{"$f":"Q9+1","v":"2018-03-05"},"2018-03-06","2018-03-07","2018-03-08","2018-03-09","2018-03-10"]
[{"$f":"G9+1","v":"2018-01-14"},"2018-01-15","2018-01-16","2018-01-17","2018-01-18","2018-01-19","2018-01-20",null,{"$f":"O9+1","v":"2018-02-11"},{"$f":"I10+1","v":"2018-02-12"},"2018-02-13","2018-02-14","2018-02-15","2018-02-16","2018-02-17",null,{"$f":"W9+1","v":"2018-03-11"},{"$f":"Q10+1","v":"2018-03-12"},"2018-03-13","2018-03-14","2018-03-15","2018-03-16","2018-03-17"]
[{"$f":"G10+1","v":"2018-01-21"},"2018-01-22","2018-01-23","2018-01-24","2018-01-25","2018-01-26","2018-01-27",null,{"$f":"O10+1","v":"2018-02-18"},{"$f":"I11+1","v":"2018-02-19"},"2018-02-20","2018-02-21","2018-02-22","2018-02-23","2018-02-24",null,{"$f":"W10+1","v":"2018-03-18"},{"$f":"Q11+1","v":"2018-03-19"},"2018-03-20","2018-03-21","2018-03-22","2018-03-23","2018-03-24"]
[{"$f":"IF( MONTH(G11+1) = MONTH(_Jan1), G11+1, 0 )","v":"2018-01-28"},{"$f":"IF( A12=0, 0, IF( MONTH(A12+1) = MONTH(_Jan1), A12+1, 0 ) )","v":"2018-01-29"},"2018-01-30","2018-01-31","00:00:00","00:00:00","00:00:00",null,{"$f":"IF( MONTH(O11+1) = MONTH(_Fev1), O11+1, 0 )","v":"2018-02-25"},{"$f":"IF( I12=0, 0, IF( MONTH(I12+1) = MONTH(_Fev1), I12+1, 0 ) )","v":"2018-02-26"},"2018-02-27","2018-02-28","00:00:00","00:00:00","00:00:00",null,{"$f":"IF( MONTH(W11+1) = MONTH(_Mar1), W11+1, 0 )","v":"2018-03-25"},{"$f":"IF( Q12=0, 0, IF( MONTH(Q12+1) = MONTH(_Mar1), Q12+1, 0 ) )","v":"2018-03-26"},"2018-03-27","2018-03-28","2018-03-29","2018-03-30","2018-03-31"]
[{"$f":"IF( G12=0, 0, IF( MONTH(G12+1) = MONTH(_Jan1), G12+1, 0 ) )","v":"00:00:00"},"00:00:00","00:00:00","00:00:00","00:00:00","00:00:00","00:00:00",null,{"$f":"IF( O12=0, 0, IF( MONTH(O12+1) = MONTH(_Fev1), O12+1, 0 ) )","v":"00:00:00"},"00:00:00","00:00:00","00:00:00","00:00:00","00:00:00","00:00:00",null,{"$f":"IF( W12=0, 0, IF( MONTH(W12+1) = MONTH(_Mar1), W12+1, 0 ) )","v":"00:00:00"},"00:00:00","00:00:00","00:00:00","00:00:00","00:00:00","00:00:00"]
[]
[{"$f":"DATE(Ano,4,1)","v":"2018-04-01"},null,null,null,null,null,null,null,{"$f":"DATE(Ano,5,1)","v":"2018-05-01"},null,null,null,null,null,null,null,{"$f":"DATE(Ano,6,1)","v":"2018-06-01"}]
[{"$f":"A7","v":"D"},"S","T","Q","Q","S","S",null,{"$f":"A16","v":"D"},"S","T","Q","Q","S","S",null,{"$f":"I16","v":"D"},"S","T","Q","Q","S","S"]
[{"$f":"IF( WEEKDAY(_Abr1) = MOD(COLUMN(),8), _Abr1, 0 )","v":"2018-04-01"},{"$f":"IF( A17>0, A17+1, IF( WEEKDAY(_Abr1)=MOD(COLUMN(),8), _Abr1, 0) )","v":"2018-04-02"},"2018-04-03","2018-04-04","2018-04-05","2018-04-06","2018-04-07",null,{"$f":"IF( WEEKDAY(_Mai1) = MOD(COLUMN(),8), _Mai1, 0 )","v":"00:00:00"},{"$f":"IF( I17>0, I17+1, IF( WEEKDAY(_Mai1)=MOD(COLUMN(),8), _Mai1, 0) )","v":"00:00:00"},"2018-05-01","2018-05-02","2018-05-03","2018-05-04","2018-05-05",null,{"$f":"IF( WEEKDAY(_Jun1) = MOD(COLUMN(),8), _Jun1, 0 )","v":"00:00:00"},{"$f":"IF( Q17>0, Q17+1, IF( WEEKDAY(_Jun1)=MOD(COLUMN(),8), _Jun1, 0) )","v":"00:00:00"},"00:00:00","00:00:00","00:00:00","2018-06-01","2018-06-02"]
[{"$f":"G17+1","v":"2018-04-08"},{"$f":"A18+1","v":"2018-04-09"},"2018-04-10","2018-04-11","2018-04-12","2018-04-13","2018-04-14",null,{"$f":"O17+1","v":"2018-05-06"},{"$f":"I18+1","v":"2018-05-07"},"2018-05-08","2018-05-09","2018-05-10","2018-05-11","2018-05-12",null,{"$f":"W17+1","v":"2018-06-03"},{"$f":"Q18+1","v":"2018-06-04"},"2018-06-05","2018-06-06","2018-06-07","2018-06-08","2018-06-09"]
[{"$f":"G18+1","v":"2018-04-15"},{"$f":"A19+1","v":"2018-04-16"},"2018-04-17","2018-04-18","2018-04-19","2018-04-20","2018-04-21",null,{"$f":"O18+1","v":"2018-05-13"},{"$f":"I19+1","v":"2018-05-14"},"2018-05-15","2018-05-16","2018-05-17","2018-05-18","2018-05-19",null,{"$f":"W18+1","v":"2018-06-10"},{"$f":"Q19+1","v":"2018-06-11"},"2018-06-12","2018-06-13","2018-06-14","2018-06-15","2018-06-16"]
[{"$f":"G19+1","v":"2018-04-22"},{"$f":"A20+1","v":"2018-04-23"},"2018-04-24","2018-04-25","2018-04-26","2018-04-27","2018-04-28",null,{"$f":"O19+1","v":"2018-05-20"},{"$f":"I20+1","v":"2018-05-21"},"2018-05-22","2018-05-23","2018-05-24","2018-05-25","2018-05-26",null,{"$f":"W19+1","v":"2018-06-17"},{"$f":"Q20+1","v":"2018-06-18"},"2018-06-19","2018-06-20","2018-06-21","2018-06-22","2018-06-23"]
[{"$f":"IF( MONTH(G20+1) = MONTH(_Abr1), G20+1, 0 )","v":"2018-04-29"},{"$f":"IF( A21=0, 0, IF( MONTH(A21+1) = MONTH(_Abr1), A21+1, 0 ) )","v":"2018-04-30"},"00:00:00","00:00:00","00:00:00","00:00:00","00:00:00",null,{"$f":"IF( MONTH(O20+1) = MONTH(_Mai1), O20+1, 0 )","v":"2018-05-27"},{"$f":"IF( I21=0, 0, IF( MONTH(I21+1) = MONTH(_Mai1), I21+1, 0 ) )","v":"2018-05-28"},"2018-05-29","2018-05-30","2018-05-31","00:00:00","00:00:00",null,{"$f":"IF( MONTH(W20+1) = MONTH(_Jun1), W20+1, 0 )","v":"2018-06-24"},{"$f":"IF( Q21=0, 0, IF( MONTH(Q21+1) = MONTH(_Jun1), Q21+1, 0 ) )","v":"2018-06-25"},"2018-06-26","2018-06-27","2018-06-28","2018-06-29","2018-06-30"]
[{"$f":"IF( G21=0, 0, IF( MONTH(G21+1) = MONTH(_Abr1), G21+1, 0 ) )","v":"00:00:00"},"00:00:00","00:00:00","00:00:00","00:00:00","00:00:00","00:00:00",null,{"$f":"IF( O21=0, 0, IF( MONTH(O21+1) = MONTH(_Mai1), O21+1, 0 ) )","v":"00:00:00"},"00:00:00","00:00:00","00:00:00","00:00:00","00:00:00","00:00:00",null,{"$f":"IF( W21=0, 0, IF( MONTH(W21+1) = MONTH(_Jun1), W21+1, 0 ) )","v":"00:00:00"},"00:00:00","00:00:00","00:00:00","00:00:00","00:00:00","00:00:00"]
[]
[{"$f":"DATE(Ano,7,1)","v":"2018-07-01"},null,null,null,null,null,null,null,{"$f":"DATE(Ano,8,1)","v":"2018-08-01"},null,null,null,null,null,null,null,{"$f":"DATE(Ano,9,1)","v":"2018-09-01"}]
[{"$f":"A16","v":"D"},"S","T","Q","Q","S","S",null,{"$f":"A25","v":"D"},"S","T","Q","Q","S","S",null,{"$f":"I25","v":"D"},"S","T","Q","Q","S","S"]
[{"$f":"IF( WEEKDAY(_Jul1) = MOD(COLUMN(),8), _Jul1, 0 )","v":"2018-07-01"},{"$f":"IF( A26>0, A26+1, IF( WEEKDAY(_Jul1)=MOD(COLUMN(),8), _Jul1, 0) )","v":"2018-07-02"},"2018-07-03","2018-07-04","2018-07-05","2018-07-06","2018-07-07",null,{"$f":"IF( WEEKDAY(_Ago1) = MOD(COLUMN(),8), _Ago1, 0 )","v":"00:00:00"},{"$f":"IF( I26>0, I26+1, IF( WEEKDAY(_Ago1)=MOD(COLUMN(),8), _Ago1, 0) )","v":"00:00:00"},"00:00:00","2018-08-01","2018-08-02","2018-08-03","2018-08-04",null,{"$f":"IF( WEEKDAY(_Set1) = MOD(COLUMN(),8), _Set1, 0 )","v":"00:00:00"},{"$f":"IF( Q26>0, Q26+1, IF( WEEKDAY(_Set1)=MOD(COLUMN(),8), _Set1, 0) )","v":"00:00:00"},"00:00:00","00:00:00","00:00:00","00:00:00","2018-09-01"]
[{"$f":"G26+1","v":"2018-07-08"},{"$f":"A27+1","v":"2018-07-09"},"2018-07-10","2018-07-11","2018-07-12","2018-07-13","2018-07-14",null,{"$f":"O26+1","v":"2018-08-05"},{"$f":"I27+1","v":"2018-08-06"},"2018-08-07","2018-08-08","2018-08-09","2018-08-10","2018-08-11",null,{"$f":"W26+1","v":"2018-09-02"},{"$f":"Q27+1","v":"2018-09-03"},"2018-09-04","2018-09-05","2018-09-06","2018-09-07","2018-09-08"]
[{"$f":"G27+1","v":"2018-07-15"},{"$f":"A28+1","v":"2018-07-16"},"2018-07-17","2018-07-18","2018-07-19","2018-07-20","2018-07-21",null,{"$f":"O27+1","v":"2018-08-12"},{"$f":"I28+1","v":"2018-08-13"},"2018-08-14","2018-08-15","2018-08-16","2018-08-17","2018-08-18",null,{"$f":"W27+1","v":"2018-09-09"},{"$f":"Q28+1","v":"2018-09-10"},"2018-09-11","2018-09-12","2018-09-13","2018-09-14","2018-09-15"]
[{"$f":"G28+1","v":"2018-07-22"},{"$f":"A29+1","v":"2018-07-23"},"2018-07-24","2018-07-25","2018-07-26","2018-07-27","2018-07-28",null,{"$f":"O28+1","v":"2018-08-19"},{"$f":"I29+1","v":"2018-08-20"},"2018-08-21","2018-08-22","2018-08-23","2018-08-24","2018-08-25",null,{"$f":"W28+1","v":"2018-09-16"},{"$f":"Q29+1","v":"2018-09-17"},"2018-09-18","2018-09-19","2018-09-20","2018-09-21","2018-09-22"]
[{"$f":"IF( MONTH(G29+1) = MONTH(_Jul1), G29+1, 0 )","v":"2018-07-29"},{"$f":"IF( A30=0, 0, IF( MONTH(A30+1) = MONTH(_Jul1), A30+1, 0 ) )","v":"2018-07-30"},"2018-07-31","00:00:00","00:00:00","00:00:00","00:00:00",null,{"$f":"IF( MONTH(O29+1) = MONTH(_Ago1), O29+1, 0 )","v":"2018-08-26"},{"$f":"IF( I30=0, 0, IF( MONTH(I30+1) = MONTH(_Ago1), I30+1, 0 ) )","v":"2018-08-27"},"2018-08-28","2018-08-29","2018-08-30","2018-08-31","00:00:00",null,{"$f":"IF( MONTH(W29+1) = MONTH(_Set1), W29+1, 0 )","v":"2018-09-23"},{"$f":"IF( Q30=0, 0, IF( MONTH(Q30+1) = MONTH(_Set1), Q30+1, 0 ) )","v":"2018-09-24"},"2018-09-25","2018-09-26","2018-09-27","2018-09-28","2018-09-29"]
[{"$f":"IF( G30=0, 0, IF( MONTH(G30+1) = MONTH(_Jul1), G30+1, 0 ) )","v":"00:00:00"},"00:00:00","00:00:00","00:00:00","00:00:00","00:00:00","00:00:00",null,{"$f":"IF( O30=0, 0, IF( MONTH(O30+1) = MONTH(_Ago1), O30+1, 0 ) )","v":"00:00:00"},"00:00:00","00:00:00","00:00:00","00:00:00","00:00:00","00:00:00",null,{"$f":"IF( W30=0, 0, IF( MONTH(W30+1) = MONTH(_Set1), W30+1, 0 ) )","v":"2018-09-30"},"00:00:00","00:00:00","00:00:00","00:00:00","00:00:00","00:00:00"]
[]
[{"$f":"DATE(Ano,10,1)","v":"2018-10-01"},null,null,null,null,null,null,null,{"$f":"DATE(Ano,11,1)","v":"2018-11-01"},null,null,null,null,null,null,null,{"$f":"DATE(Ano,12,1)","v":"2018-12-01"}]
[{"$f":"A25","v":"D"},"S","T","Q","Q","S","S",null,{"$f":"A34","v":"D"},"S","T","Q","Q","S","S",null,{"$f":"I34","v":"D"},"S","T","Q","Q","S","S"]
[{"$f":"IF( WEEKDAY(_Out1) = MOD(COLUMN(),8), _Out1, 0 )","v":"00:00:00"},{"$f":"IF( A35>0, A35+1, IF( WEEKDAY(_Out1)=MOD(COLUMN(),8), _Out1, 0) )","v":"2018-10-01"},"2018-10-02","2018-10-03","2018-10-04","2018-10-05","2018-10-06",null,{"$f":"IF( WEEKDAY(_Nov1) = MOD(COLUMN(),8), _Nov1, 0 )","v":"00:00:00"},{"$f":"IF( I35>0, I35+1, IF( WEEKDAY(_Nov1)=MOD(COLUMN(),8), _Nov1, 0) )","v":"00:00:00"},"00:00:00","00:00:00","2018-11-01","2018-11-02","2018-11-03",null,{"$f":"IF( WEEKDAY(_Dez1) = MOD(COLUMN(),8), _Dez1, 0 )","v":"00:00:00"},{"$f":"IF( Q35>0, Q35+1, IF( WEEKDAY(_Dez1)=MOD(COLUMN(),8), _Dez1, 0) )","v":"00:00:00"},"00:00:00","00:00:00","00:00:00","00:00:00","2018-12-01"]
[{"$f":"G35+1","v":"2018-10-07"},{"$f":"A36+1","v":"2018-10-08"},"2018-10-09","2018-10-10","2018-10-11","2018-10-12","2018-10-13",null,{"$f":"O35+1","v":"2018-11-04"},{"$f":"I36+1","v":"2018-11-05"},"2018-11-06","2018-11-07","2018-11-08","2018-11-09","2018-11-10",null,{"$f":"W35+1","v":"2018-12-02"},{"$f":"Q36+1","v":"2018-12-03"},"2018-12-04","2018-12-05","2018-12-06","2018-12-07","2018-12-08"]
[{"$f":"G36+1","v":"2018-10-14"},{"$f":"A37+1","v":"2018-10-15"},"2018-10-16","2018-10-17","2018-10-18","2018-10-19","2018-10-20",null,{"$f":"O36+1","v":"2018-11-11"},{"$f":"I37+1","v":"2018-11-12"},"2018-11-13","2018-11-14","2018-11-15","2018-11-16","2018-11-17",null,{"$f":"W36+1","v":"2018-12-09"},{"$f":"Q37+1","v":"2018-12-10"},"2018-12-11","2018-12-12","2018-12-13","2018-12-14","2018-12-15"]
[{"$f":"G37+1","v":"2018-10-21"},{"$f":"A38+1","v":"2018-10-22"},"2018-10-23","2018-10-24","2018-10-25","2018-10-26","2018-10-27",null,{"$f":"O37+1","v":"2018-11-18"},{"$f":"I38+1","v":"2018-11-19"},"2018-11-20","2018-11-21","2018-11-22","2018-11-23","2018-11-24",null,{"$f":"W37+1","v":"2018-12-16"},{"$f":"Q38+1","v":"2018-12-17"},"2018-12-18","2018-12-19","2018-12-20","2018-12-21","2018-12-22"]
[{"$f":"IF( MONTH(G38+1) = MONTH(_Out1), G38+1, 0 )","v":"2018-10-28"},{"$f":"IF( A39=0, 0, IF( MONTH(A39+1) = MONTH(_Out1), A39+1, 0 ) )","v":"2018-10-29"},"2018-10-30","2018-10-31","00:00:00","00:00:00","00:00:00",null,{"$f":"IF( MONTH(O38+1) = MONTH(_Nov1), O38+1, 0 )","v":"2018-11-25"},{"$f":"IF( I39=0, 0, IF( MONTH(I39+1) = MONTH(_Nov1), I39+1, 0 ) )","v":"2018-11-26"},"2018-11-27","2018-11-28","2018-11-29","2018-11-30","00:00:00",null,{"$f":"IF( MONTH(W38+1) = MONTH(_Dez1), W38+1, 0 )","v":"2018-12-23"},{"$f":"IF( Q39=0, 0, IF( MONTH(Q39+1) = MONTH(_Dez1), Q39+1, 0 ) )","v":"2018-12-24"},"2018-12-25","2018-12-26","2018-12-27","2018-12-28","2018-12-29"]
[{"$f":"IF( G39=0, 0, IF( MONTH(G39+1) = MONTH(_Out1), G39+1, 0 ) )","v":"00:00:00"},"00:00:00","00:00:00","00:00:00","00:00:00","00:00:00","00:00:00",null,{"$f":"IF( O39=0, 0, IF( MONTH(O39+1) = MONTH(_Nov1), O39+1, 0 ) )","v":"00:00:00"},"00:00:00","00:00:00","00:00:00","00:00:00","00:00:00","00:00:00",null,{"$f":"IF( W39=0, 0, IF( MONTH(W39+1) = MONTH(_Dez1), W39+1, 0 ) )","v":"2018-12-30"},"2018-12-31","00:00:00","00:00:00","00:00:00","00:00:00","00:00:00"]

{"sheet":"Mensal","index":2,"n_rows":17,"n_cols":33,"rows_kept":17,"cut":false,"hidden":false,"merged":[[11,12,11,13],[17,0,17,1],[17,2,17,3],[15,12,15,13],[15,0,15,1],[15,2,15,3],[15,4,15,5],[15,6,15,7],[15,8,15,9],[17,8,17,9],[17,10,17,11],[17,4,17,5],[17,6,17,7],[17,12,17,13],[15,10,15,11],[13,2,13,3],[13,4,13,5],[13,6,13,7],[13,12,13,13],[13,8,13,9],[13,10,13,11],[11,2,11,3],[11,4,11,5],[11,6,11,7],[11,8,11,9],[11,10,11,11],[13,0,13,1],[9,12,9,13],[7,0,7,1],[7,2,7,3],[7,4,7,5],[7,6,7,7],[7,8,7,9],[7,10,7,11],[7,12,7,13],[9,0,9,1],[9,2,9,3],[9,4,9,5],[9,6,9,7],[9,8,9,9],[9,10,9,11],[11,0,11,1],[5,8,5,9],[5,10,5,11],[5,12,5,13],[5,0,5,1],[5,2,5,3],[5,4,5,5],[5,6,5,7]]}
[null,null,null,null,null,null,null,null,true,null,null,null,"Mês seguinte:"]
[null,null,null,null,null,null,null,null,true,null,null,null,2,null,null,null,null,null,null,null,null,null,null,null,null,null,null,null,null,null,true,null,true]
[null,null,null,null,null,null,null,null,false,null,null,null,"Mês anterior:"]
[{"$f":"UPPER(TEXT(_Dia1,\"mmmm \\• aaaa\"))","v":"FEVEREIRO • 2018"}]
[{"$f":"DATE(Ano,Mês,1)","v":43132},null,null,null,null,null,null,null,null,null,null,null,null,2]
["Domingo",null,"Segunda-feira",null,"Terça-feira",null,"Quarta-feira",null,"Quinta-feira",null,"Sexta-feira",null,"Sábado"]
[{"$f":"IF(FerNac, IF(ISNA(INDEX(Brz3A, MATCH(B7,_Brz3,0))), \"\", INDEX(Brz3A, MATCH(B7,_Brz3,0))), \"\" )","v":""},{"$f":"IF( WEEKDAY(_Dia1) = MOD(COLUMN()-1,8), _Dia1, 0 )","v":"00:00:00"},{"$f":"IF(FerNac, IF(ISNA(INDEX(Brz3A, MATCH(D7,_Brz3,0))), \"\", INDEX(Brz3A, MATCH(D7,_Brz3,0))), \"\" )","v":""},{"$f":"IF( B7>0, B7+1, IF( WEEKDAY(_Dia1)=MOD(COLUMN()-2,8), _Dia1, 0) )","v":"00:00:00"},{"$f":"IF(FerNac, IF(ISNA(INDEX(Brz3A, MATCH(F7,_Brz3,0))), \"\", INDEX(Brz3A, MATCH(F7,_Brz3,0))), \"\" )","v":""},{"$f":"IF( D7>0, D7+1, IF( WEEKDAY(_Dia1)=MOD(COLUMN()-3,8), _Dia1, 0) )","v":"00:00:00"},{"$f":"IF(FerNac, IF(ISNA(INDEX(Brz3A, MATCH(H7,_Brz3,0))), \"\", INDEX(Brz3A, MATCH(H7,_Brz3,0))), \"\" )","v":""},{"$f":"IF( F7>0, F7+1, IF( WEEKDAY(_Dia1)=MOD(COLUMN()-4,8), _Dia1, 0) )","v":"00:00:00"},{"$f":"IF(FerNac, IF(ISNA(INDEX(Brz3A, MATCH(J7,_Brz3,0))), \"\", INDEX(Brz3A, MATCH(J7,_Brz3,0))), \"\" )","v":""},{"$f":"IF( H7>0, H7+1, IF( WEEKDAY(_Dia1)=MOD(COLUMN()-5,8), _Dia1, 0) )","v":"2018-02-01"},{"$f":"IF(FerNac, IF(ISNA(INDEX(Brz3A, MATCH(L7,_Brz3,0))), \"\", INDEX(Brz3A, MATCH(L7,_Brz3,0))), \"\" )","v":""},{"$f":"IF( J7>0, J7+1, IF( WEEKDAY(_Dia1)=MOD(COLUMN()-6,8), _Dia1, 0) )","v":"2018-02-02"},{"$f":"IF(FerNac, IF(ISNA(INDEX(Brz3A, MATCH(N7,_Brz3,0))), \"\", INDEX(Brz3A, MATCH(N7,_Brz3,0))), \"\" )","v":""},{"$f":"IF( L7>0, L7+1, IF( WEEKDAY(_Dia1)=MOD(COLUMN()-7,8), _Dia1, 0) )","v":"2018-02-03"}]
[]
[{"$f":"IF(FerNac, IF(ISNA(INDEX(Brz3A, MATCH(B9,_Brz3,0))), \"\", INDEX(Brz3A, MATCH(B9,_Brz3,0))), \"\" )","v":""},{"$f":"N7+1","v":"2018-02-04"},{"$f":"IF(FerNac, IF(ISNA(INDEX(Brz3A, MATCH(D9,_Brz3,0))), \"\", INDEX(Brz3A, MATCH(D9,_Brz3,0))), \"\" )","v":""},{"$f":"B9+1","v":"2018-02-05"},{"$f":"IF(FerNac, IF(ISNA(INDEX(Brz3A, MATCH(F9,_Brz3,0))), \"\", INDEX(Brz3A, MATCH(F9,_Brz3,0))), \"\" )","v":""},{"$f":"D9+1","v":"2018-02-06"},{"$f":"IF(FerNac, IF(ISNA(INDEX(Brz3A, MATCH(H9,_Brz3,0))), \"\", INDEX(Brz3A, MATCH(H9,_Brz3,0))), \"\" )","v":""},{"$f":"F9+1","v":"2018-02-07"},{"$f":"IF(FerNac, IF(ISNA(INDEX(Brz3A, MATCH(J9,_Brz3,0))), \"\", INDEX(Brz3A, MATCH(J9,_Brz3,0))), \"\" )","v":""},{"$f":"H9+1","v":"2018-02-08"},{"$f":"IF(FerNac, IF(ISNA(INDEX(Brz3A, MATCH(L9,_Brz3,0))), \"\", INDEX(Brz3A, MATCH(L9,_Brz3,0))), \"\" )","v":""},{"$f":"J9+1","v":"2018-02-09"},{"$f":"IF(FerNac, IF(ISNA(INDEX(Brz3A, MATCH(N9,_Brz3,0))), \"\", INDEX(Brz3A, MATCH(N9,_Brz3,0))), \"\" )","v":""},{"$f":"L9+1","v":"2018-02-10"}]
[]
[{"$f":"IF(FerNac, IF(ISNA(INDEX(Brz3A, MATCH(B11,_Brz3,0))), \"\", INDEX(Brz3A, MATCH(B11,_Brz3,0))), \"\" )","v":""},{"$f":"N9+1","v":"2018-02-11"},{"$f":"IF(FerNac, IF(ISNA(INDEX(Brz3A, MATCH(D11,_Brz3,0))), \"\", INDEX(Brz3A, MATCH(D11,_Brz3,0))), \"\" )","v":""},{"$f":"B11+1","v":"2018-02-12"},{"$f":"IF(FerNac, IF(ISNA(INDEX(Brz3A, MATCH(F11,_Brz3,0))), \"\", INDEX(Brz3A, MATCH(F11,_Brz3,0))), \"\" )","v":"Carnaval (Facultativo)"},{"$f":"D11+1","v":"2018-02-13"},{"$f":"IF(FerNac, IF(ISNA(INDEX(Brz3A, MATCH(H11,_Brz3,0))), \"\", INDEX(Brz3A, MATCH(H11,_Brz3,0))), \"\" )","v":""},{"$f":"F11+1","v":"2018-02-14"},{"$f":"IF(FerNac, IF(ISNA(INDEX(Brz3A, MATCH(J11,_Brz3,0))), \"\", INDEX(Brz3A, MATCH(J11,_Brz3,0))), \"\" )","v":""},{"$f":"H11+1","v":"2018-02-15"},{"$f":"IF(FerNac, IF(ISNA(INDEX(Brz3A, MATCH(L11,_Brz3,0))), \"\", INDEX(Brz3A, MATCH(L11,_Brz3,0))), \"\" )","v":""},{"$f":"J11+1","v":"2018-02-16"},{"$f":"IF(FerNac, IF(ISNA(INDEX(Brz3A, MATCH(N11,_Brz3,0))), \"\", INDEX(Brz3A, MATCH(N11,_Brz3,0))), \"\" )","v":""},{"$f":"L11+1","v":"2018-02-17"}]
[]
[{"$f":"IF(FerNac, IF(ISNA(INDEX(Brz3A, MATCH(B13,_Brz3,0))), \"\", INDEX(Brz3A, MATCH(B13,_Brz3,0))), \"\" )","v":""},{"$f":"N11+1","v":"2018-02-18"},{"$f":"IF(FerNac, IF(ISNA(INDEX(Brz3A, MATCH(D13,_Brz3,0))), \"\", INDEX(Brz3A, MATCH(D13,_Brz3,0))), \"\" )","v":""},{"$f":"B13+1","v":"2018-02-19"},{"$f":"IF(FerNac, IF(ISNA(INDEX(Brz3A, MATCH(F13,_Brz3,0))), \"\", INDEX(Brz3A, MATCH(F13,_Brz3,0))), \"\" )","v":""},{"$f":"D13+1","v":"2018-02-20"},{"$f":"IF(FerNac, IF(ISNA(INDEX(Brz3A, MATCH(H13,_Brz3,0))), \"\", INDEX(Brz3A, MATCH(H13,_Brz3,0))), \"\" )","v":""},{"$f":"F13+1","v":"2018-02-21"},{"$f":"IF(FerNac, IF(ISNA(INDEX(Brz3A, MATCH(J13,_Brz3,0))), \"\", INDEX(Brz3A, MATCH(J13,_Brz3,0))), \"\" )","v":""},{"$f":"H13+1","v":"2018-02-22"},{"$f":"IF(FerNac, IF(ISNA(INDEX(Brz3A, MATCH(L13,_Brz3,0))), \"\", INDEX(Brz3A, MATCH(L13,_Brz3,0))), \"\" )","v":""},{"$f":"J13+1","v":"2018-02-23"},{"$f":"IF(FerNac, IF(ISNA(INDEX(Brz3A, MATCH(N13,_Brz3,0))), \"\", INDEX(Brz3A, MATCH(N13,_Brz3,0))), \"\" )","v":""},{"$f":"L13+1","v":"2018-02-24"}]
[]
[{"$f":"IF(FerNac, IF(ISNA(INDEX(Brz3A, MATCH(B15,_Brz3,0))), \"\", INDEX(Brz3A, MATCH(B15,_Brz3,0))), \"\" )","v":""},{"$f":"IF(MONTH(N13+1)=MONTH(_Dia1),N13+1,0)","v":"2018-02-25"},{"$f":"IF(FerNac, IF(ISNA(INDEX(Brz3A, MATCH(D15,_Brz3,0))), \"\", INDEX(Brz3A, MATCH(D15,_Brz3,0))), \"\" )","v":""},{"$f":"IF(B15=0, 0, IF( MONTH(B15+1) = MONTH(_Dia1), B15+1, 0 ))","v":"2018-02-26"},{"$f":"IF(FerNac, IF(ISNA(INDEX(Brz3A, MATCH(F15,_Brz3,0))), \"\", INDEX(Brz3A, MATCH(F15,_Brz3,0))), \"\" )","v":""},{"$f":"IF(D15=0, 0, IF( MONTH(D15+1) = MONTH(_Dia1), D15+1, 0 ))","v":"2018-02-27"},{"$f":"IF(FerNac, IF(ISNA(INDEX(Brz3A, MATCH(H15,_Brz3,0))), \"\", INDEX(Brz3A, MATCH(H15,_Brz3,0))), \"\" )","v":""},{"$f":"IF(F15=0, 0, IF( MONTH(F15+1) = MONTH(_Dia1), F15+1, 0 ))","v":"2018-02-28"},{"$f":"IF(FerNac, IF(ISNA(INDEX(Brz3A, MATCH(J15,_Brz3,0))), \"\", INDEX(Brz3A, MATCH(J15,_Brz3,0))), \"\" )","v":""},{"$f":"IF(H15=0, 0, IF( MONTH(H15+1) = MONTH(_Dia1), H15+1, 0 ))","v":"00:00:00"},{"$f":"IF(FerNac, IF(ISNA(INDEX(Brz3A, MATCH(L15,_Brz3,0))), \"\", INDEX(Brz3A, MATCH(L15,_Brz3,0))), \"\" )","v":""},{"$f":"IF(J15=0, 0, IF( MONTH(J15+1) = MONTH(_Dia1), J15+1, 0 ))","v":"00:00:00"},{"$f":"IF(FerNac, IF(ISNA(INDEX(Brz3A, MATCH(N15,_Brz3,0))), \"\", INDEX(Brz3A, MATCH(N15,_Brz3,0))), \"\" )","v":""},{"$f":"IF(L15=0, 0, IF( MONTH(L15+1) = MONTH(_Dia1), L15+1, 0 ))","v":"00:00:00"}]
[]
[{"$f":"IF(FerNac, IF(ISNA(INDEX(Brz3A, MATCH(B17,_Brz3,0))), \"\", INDEX(Brz3A, MATCH(B17,_Brz3,0))), \"\" )","v":""},{"$f":"IF(N15=0, 0, IF( MONTH(N15+1) = MONTH(_Dia1), N15+1, 0 ))","v":"00:00:00"},{"$f":"IF(FerNac, IF(ISNA(INDEX(Brz3A, MATCH(D17,_Brz3,0))), \"\", INDEX(Brz3A, MATCH(D17,_Brz3,0))), \"\" )","v":""},{"$f":"IF(B17=0, 0, IF( MONTH(B17+1) = MONTH(_Dia1), B17+1, 0 ))","v":"00:00:00"},{"$f":"IF(FerNac, IF(ISNA(INDEX(Brz3A, MATCH(F17,_Brz3,0))), \"\", INDEX(Brz3A, MATCH(F17,_Brz3,0))), \"\" )","v":""},{"$f":"IF(D17=0, 0, IF( MONTH(D17+1) = MONTH(_Dia1), D17+1, 0 ))","v":"00:00:00"},{"$f":"IF(FerNac, IF(ISNA(INDEX(Brz3A, MATCH(H17,_Brz3,0))), \"\", INDEX(Brz3A, MATCH(H17,_Brz3,0))), \"\" )","v":""},{"$f":"IF(F17=0, 0, IF( MONTH(F17+1) = MONTH(_Dia1), F17+1, 0 ))","v":"00:00:00"},{"$f":"IF(FerNac, IF(ISNA(INDEX(Brz3A, MATCH(J17,_Brz3,0))), \"\", INDEX(Brz3A, MATCH(J17,_Brz3,0))), \"\" )","v":""},{"$f":"IF(H17=0, 0, IF( MONTH(H17+1) = MONTH(_Dia1), H17+1, 0 ))","v":"00:00:00"},{"$f":"IF(FerNac, IF(ISNA(INDEX(Brz3A, MATCH(L17,_Brz3,0))), \"\", INDEX(Brz3A, MATCH(L17,_Brz3,0))), \"\" )","v":""},{"$f":"IF(J17=0, 0, IF( MONTH(J17+1) = MONTH(_Dia1), J17+1, 0 ))","v":"00:00:00"},{"$f":"IF(FerNac, IF(ISNA(INDEX(Brz3A, MATCH(N17,_Brz3,0))), \"\", INDEX(Brz3A, MATCH(N17,_Brz3,0))), \"\" )","v":""},{"$f":"IF(L17=0, 0, IF( MONTH(L17+1) = MONTH(_Dia1), L17+1, 0 ))","v":"00:00:00"}]

{"sheet":"Feriados","index":3,"n_rows":90,"n_cols":7,"rows_kept":90,"cut":false,"hidden":false,"merged":[[54,0,69,0],[3,0,37,0],[38,0,53,0]]}
[null,{"$f":"\"Tabelas de Feriados em \"&Ano","v":"Tabelas de Feriados em 2018"}]
[]
[null,"Nome","Data","Tipo","Ocorrência"]
["Feriados Nacionais/locais e tarefas","Confratern. Universal",{"$f":"DATE(Ano,1,1)","v":"2018-01-01"},"Fixo","Dia 1 de Janeiro",null,"Janeiro"]
[null,"Paixão de Cristo",{"$f":"Páscoa-2","v":"2018-03-30"},"Móvel","2 dias antes da Páscoa",null,"Fevereiro"]
[null,"Páscoa",{"$f":"DATE(Ano, P_Mês, P_Dia)","v":"2018-04-01"},"Móvel","Depende das fases da Lua",null,"Março"]
[null,"Tiradentes",{"$f":"DATE(Ano,4,21)","v":"2018-04-21"},"Fixo","Dia 21 de Abril",null,"Abril"]
[null,"Dia do Trabalho",{"$f":"DATE(Ano,5,1)","v":"2018-05-01"},"Fixo","Dia 1 de Maio",null,"Maio"]
[null,"Corpus Christi",{"$f":"Páscoa+60","v":"2018-05-31"},"Móvel","60 dias após a Páscoa",null,"Junho"]
[null,"Independ. do Brasil",{"$f":"DATE(Ano,9,7)","v":"2018-09-07"},"Fixo","Dia 7 de Setembro",null,"Julho"]
[null,"N. S. da Aparecida",{"$f":"DATE(Ano,10,12)","v":"2018-10-12"},"Fixo","Dia 12 de Outubro",null,"Agosto"]
[null,"Finados",{"$f":"DATE(Ano,11,2)","v":"2018-11-02"},"Fixo","Dia 2 de Novembro",null,"Setembro"]
[null,"Proclamação da República",{"$f":"DATE(Ano,11,15)","v":"2018-11-15"},"Fixo","Dia 15 de Novembro",null,"Outubro"]
[null,"Natal",{"$f":"DATE(Ano,12,25)","v":"2018-12-25"},"Fixo","Dia 25 de Dezembro",null,"Novembro"]
[null,"Revol. Const. São Paulo",{"$f":"DATE(Ano,7,9)","v":"2018-07-09"},"Fixo","Dia 9 de Julho",null,"Dezembro"]
[null,"Fund. cidade SBCampo",{"$f":"DATE(Ano,8,20)","v":"2018-08-20"},"Fixo","Dia 20 de Agosto"]
[null,"Guerra dos Farrapos",{"$f":"DATE(Ano,9,20)","v":"2018-09-20"},"Fixo","Dia 20 de setembro"]
[]
[]
[]
[]
[]
[]
[]
[]
[]
[]
[]
[]
[]
[]
[]
[]
[]
[]
[]
[]
[]
["Datas Comemorativas","Carnaval (Facultativo)",{"$f":"Páscoa-47","v":"2018-02-13"},"Móvel","47 dias antes da Páscoa"]
[null,"Dia Internac. da Mulher",{"$f":"DATE(Ano,3,8)","v":"2018-03-08"},"Fixo","Dia 8 de março"]
[null,"Domingo de Ramos",{"$f":"Páscoa-7","v":"2018-03-25"},"Móvel","Domingo anterior à Páscoa"]
[null,"Sábado de Aleluia",{"$f":"Páscoa-1","v":"2018-03-31"},"Móvel","Sábado anterior à Páscoa"]
[null,"Dia das Mães",{"$f":"DATE(Ano,5,1)+IF(1<WEEKDAY(DATE(Ano,5,1)),7-WEEKDAY(DATE(Ano,5,1))+1,1-WEEKDAY(DATE(Ano,5,1)))+(2-1)*7","v":"2018-05-13"},"Móvel","2º domingo de Maio"]
[null,"Dia dos Namorados",{"$f":"DATE(Ano,6,12)","v":"2018-06-12"},"Fixo","Dia 12 de Junho"]
[null,"Dia das Crianças",{"$f":"DATE(Ano,10,12)","v":"2018-10-12"},"Fixo","Dia 12 de Outubro"]
[]
[]
[]
[]
[]
[]
[]
[]
[]
["Feriados nos EUA","Thanksgiving",{"$f":"DATE(Ano,11,28)-MOD(DATE(Ano,11,28)-5,7)","v":"2018-11-22"},"Móvel","4ª quinta-feira de Novembro"]
[null,"Eleição2ºturno (se houver)",{"$f":"DATE(Ano,10,28)-MOD(DATE(Ano,10,28)-1,7)","v":"2018-10-28"},"Móvel","4º domingo de Outubro"]
[null,"Dia dos Pais",{"$f":"DATE(Ano,8,1)+IF(1<WEEKDAY(DATE(Ano,8,1)),7-WEEKDAY(DATE(Ano,8,1))+1,1-WEEKDAY(DATE(Ano,8,1)))+(2-1)*7","v":"2018-08-12"},"Móvel","2º domingo de Agosto"]
[null,"Dia da Secretária",{"$f":"DATE(Ano,9,30)","v":"2018-09-30"},"Fixo","Dia 30 de Setembro"]
[null,"Martin Luther King Day",{"$f":"DATE(Ano,1,21)-MOD(DATE(Ano,1,5),7)","v":"2018-01-15"},"Móvel","3ª segunda-feira de Janeiro"]
[null,"President's Day",{"$f":"DATE(Ano,2,21)-MOD(DATE(Ano,2,21)-2,7)","v":"2018-02-19"},"Móvel","3ª segunda-feira de Fevereiro"]
[null,"Memorial Day",{"$f":"DATE(Ano,5,31)-MOD(DATE(Ano,5,31)-2,7)","v":"2018-05-28"},"Móvel","Última segunda-feira de Maio"]
[null,"Independence Day",{"$f":"DATE(Ano,7,4)","v":"2018-07-04"},"Fixo","4º dia de Julho"]
[null,"Labor Day",{"$f":"DATE(Ano,9,7)-MOD(DATE(Ano,9,7)-2,7)","v":"2018-09-03"},"Móvel","1ª segunda-feira de Setembro"]
[null,"Columbus Day",{"$f":"DATE(Ano,10,1)+IF(2<WEEKDAY(DATE(Ano,10,1)),7-WEEKDAY(DATE(Ano,10,1))+2,2-WEEKDAY(DATE(Ano,10,1)))+((2-1)*7)","v":"2018-10-08"},"Móvel","2ª segunda-feira de Outubro"]
[null,"Veteran's Day",{"$f":"DATE(Ano,11,11)","v":"2018-11-11"},"Fixo","11º dia de Novembro"]
[]
[]
[]
[]
[]
[]
[]
[null,"[[","Fórmulas",null,"Fórmulas"]
[null,"A = o resto de (Ano ÷ 19)",{"$f":"MOD(Ano,19)","v":4},null,{"$f":"MOD(Ano,19)","v":4}]
[null,"B = o inteiro de (Ano ÷ 100)",{"$f":"INT(Ano/100)","v":20},null,{"$f":"INT(Ano/100)","v":20}]
[null,"C = o resto de (Ano ÷ 100)",{"$f":"MOD(Ano,100)","v":18},null,{"$f":"MOD(Ano,100)","v":18}]
[null,"D = o inteiro de (B ÷ 4)",{"$f":"INT(C75/4)","v":5},null,{"$f":"INT(INT(Ano/100)/4)","v":5}]
[null,"E = o resto de (B ÷ 4)",{"$f":"MOD(C75,4)","v":0},null,{"$f":"MOD(INT(Ano/100),4)","v":0}]
[null,"F = o inteiro de (B + 8) ÷ 25",{"$f":"INT((C75+8)/25)","v":1},null,{"$f":"INT((INT(Ano/100)+8)/25)","v":1}]
[null,"G = o inteiro de (B - F + 1) ÷ 3",{"$f":"INT((C75-C79+1)/3)","v":6},null,{"$f":"INT((INT(Ano/100)-INT((INT(Ano/100)+8)/25)+1)/3)","v":6}]
[null,"H = o resto de (19 × A + B - D - G + 15) ÷ 30",{"$f":"MOD(19*C74 + C75 - C77 - C80 + 15, 30)","v":10},null,{"$f":"MOD(19*MOD(Ano,19)+INT(Ano/100)-INT(INT(Ano/100)/4)-INT((INT(Ano/100)-INT((INT(Ano/100)+8)/25)+1)/3)+15,30)","v":10}]
[null,"I = o inteiro de (C ÷ 4)",{"$f":"INT(C76/4)","v":4},null,{"$f":"INT(MOD(Ano,100)/4)","v":4}]
[null,"K = o resto de (C ÷ 4)",{"$f":"MOD(C76,4)","v":2},null,{"$f":"MOD(MOD(Ano,100),4)","v":2}]
[null,"L = o resto de (32 + 2 × E + 2 × I - H - K) ÷ 7",{"$f":"MOD(32+2*C78+2*C82-C81-C83,7)","v":0},null,{"$f":"MOD(32+2*MOD(INT(Ano/100),4)+2*INT(MOD(Ano,100)/4)-MOD(19*MOD(Ano,19)+INT(Ano/100)-INT(INT(Ano/100)/4)-INT((INT(Ano/100)-INT((INT(Ano/100)+8)/25)+1)/3)+15,30)-MOD(MOD(Ano,100),4),7)","v":0}]
[null,"M = o inteiro de (A + 11 × H + 22 × L) ÷ 451",{"$f":"INT((C74+11*C81+22*C84)/451)","v":0},null,{"$f":"INT((MOD(Ano,19)+11*MOD(19*MOD(Ano,19)+INT(Ano/100)-INT(INT(Ano/100)/4)-INT((INT(Ano/100)-INT((INT(Ano/100)+8)/25)+1)/3)+15,30)+22*MOD(32+2*MOD(INT(Ano/100),4)+2*INT(MOD(Ano,100)/4)-MOD(19*MOD(Ano,19)+INT(Ano/100)-INT(INT(Ano/100)/4)-INT((INT(Ano/100)-INT((INT(Ano/100)+8)/25)+1)/3)+15,30)-MOD(MOD(Ano,100),4),7))/451)","v":0}]
[null,"P = o inteiro de (H + L - 7 × M + 114) ÷ 31",{"$f":"INT((C81+C84-7*C85+114)/31)","v":4},null,{"$f":"INT((MOD(19*MOD(Ano,19)+INT(Ano/100)-INT(INT(Ano/100)/4)-INT((INT(Ano/100)-INT((INT(Ano/100)+8)/25)+1)/3)+15,30)+MOD(32+2*MOD(INT(Ano/100),4)+2*INT(MOD(Ano,100)/4)-MOD(19*MOD(Ano,19)+INT(Ano/100)-INT(INT(Ano/100)/4)-INT((INT(Ano/100)-INT((INT(Ano/100)+8)/25)+1)/3)+15,30)-MOD(MOD(Ano,100),4),7)-7*INT((MOD(Ano,19)+11*MOD(19*MOD(Ano,19)+INT(Ano/100)-INT(INT(Ano/100)/4)-INT((INT(Ano/100)-INT((INT(Ano/100)+8)/25)+1)/3)+15,30)+22*MOD(32+2*MOD(INT(Ano/100),4)+2*INT(MOD(Ano,100)/4)-MOD(19*MOD(Ano,19)+INT(Ano/100)-INT(INT(Ano/100)/4)-INT((INT(Ano/100)-INT((INT(Ano/100)+8)/25)+1)/3)+15,30)-MOD(MOD(Ano,100),4),7))/451)+114)/31)","v":4}]
[null,"Q = o resto de (H + L - 7 × M + 114) ÷ 31",{"$f":"MOD(C81+C84-7*C85+114,31)","v":0},null,{"$f":"MOD(MOD(19*MOD(Ano,19)+INT(Ano/100)-INT(INT(Ano/100)/4)-INT((INT(Ano/100)-INT((INT(Ano/100)+8)/25)+1)/3)+15,30)+MOD(32+2*MOD(INT(Ano/100),4)+2*INT(MOD(Ano,100)/4)-MOD(19*MOD(Ano,19)+INT(Ano/100)-INT(INT(Ano/100)/4)-INT((INT(Ano/100)-INT((INT(Ano/100)+8)/25)+1)/3)+15,30)-MOD(MOD(Ano,100),4),7)-7*INT((MOD(Ano,19)+11*MOD(19*MOD(Ano,19)+INT(Ano/100)-INT(INT(Ano/100)/4)-INT((INT(Ano/100)-INT((INT(Ano/100)+8)/25)+1)/3)+15,30)+22*MOD(32+2*MOD(INT(Ano/100),4)+2*INT(MOD(Ano,100)/4)-MOD(19*MOD(Ano,19)+INT(Ano/100)-INT(INT(Ano/100)/4)-INT((INT(Ano/100)-INT((INT(Ano/100)+8)/25)+1)/3)+15,30)-MOD(MOD(Ano,100),4),7))/451)+114,31)","v":0}]
[]
[null,null,"A Páscoa será no dia Q+1:",{"$f":"C87+1","v":1}]
[null,null,"A Páscoa será no mês P:",{"$f":"C86","v":4}]

{"sheet":"Comemorações","index":4,"n_rows":792,"n_cols":2,"rows_kept":792,"cut":false,"hidden":false,"merged":[[79,0,79,1],[2,0,2,1],[4,0,4,1],[0,0,0,1],[48,0,48,1],[6,0,6,1],[571,0,571,1],[674,0,674,1],[725,0,725,1],[133,0,133,1],[212,0,212,1],[300,0,300,1],[375,0,375,1],[434,0,434,1],[497,0,497,1]]}
["Datas Comemorativas "]
[]
["Aqui você encontra um calendário anual com as principais datas comemorativas no Brasil. Algumas delas são internacionais, outras nacionais e outras apenas regionais."]
[]
["Muitos dos dias relacionados abaixo são considerados feriados, mas nem todas as regiões do País ou Países do Mundo comemoram a data."]
[]
["JANEIRO"]
["Dia 01","Confraternização Universal - Ano Novo (Dia Internacional da Paz)"]
["Dia 03","Dia Nacional da Abreugrafia"]
["Dia 04","Dia da Criação do Estado de Rondônia-RO"]
["Dia 05","Criação da primeira Tipografia no Brasil"]
["Dia 06","Dia da Gratidão"]
["Dia 06","Dia de Santos Reis (Reis Magos)"]
["Dia 07","Dia da Liberdade de Cultos"]
["Dia 07","Dia do Leitor"]
["Dia 08","Dia do Fotógrafo e da Fotografia"]
["Dia 09","Dia do Fico"]
["Dia 09","Dia do Astronauta"]
["Dia 11","Dia do Controle da Poluição por Agrotóxicos"]
["Dia 13","Criação do Museu Nacional de Belas Artes (1937)"]
["Dia 14","Dia do Empresário de Contabilidade"]
["Dia 14","Dia do Enfermo"]
["Dia 15","Dia do Museu de Arte Moderna do Rio de Janeiro"]
["Dia 15","Dia Mundial do Compositor"]
["Dia 15","Dia dos Adultos"]
["Dia 17","Dia dos Tribunais de Contas"]
["Dia 20","Dia de São Sebastião - Padroeiro da cidade do Rio de Janeiro (feriado)"]
["Dia 20","Dia do Farmacêutico"]
["Dia 20","Dia Nacional do Fusca"]
["Dia 20","Dia de Oxalá"]
["Dia 21","Dia Mundial da Religião"]
["Dia 24","Dia da Previdência Social"]
["Dia 24","Promulgação da Constituição de 1967"]
["Dia 24","Instituição do Casamento Cívil no Brasil"]
["Dia 24","Dia Nacional do Aposentado"]
["Dia 25","Criação dos Correios no Brasil"]
["Dia 25","Fundação da Cidade de São Paulo em 1554(feriado)"]
["Dia 25","Dia de Carteiro"]
["Dia 27","Elevação do Brasil a Vice - Reinado em 1763"]
["Dia 27","Dia do Orador"]
["Dia 28","Abertura dos Pontos no Brasil em 1808"]
["Dia 28","Dia Internacional do Hanseniano"]
["Dia 29","Dia do Jornalista"]
["Dia 30","Dia da Saudade"]
["Dia 30","Dia do Portuário (Portuária)"]
["Dia 30","Dia Nacional das Histórias em Quadrinhos"]
["Dia 31","Dia Mundial do Mágico"]
["Dia 31","Dia da Solidariedade"]
["FEVEREIRO"]
["Dia 01","Dia do Publicitário"]
["Dia 02","Dia de Iemanjá"]
["Dia 02","Dia do Agente Fiscal"]
["Dia 05","Dia do Datiloscopista (Datiloscopia)"]
["Dia 06","Dia do Agente de Defesa Ambiental"]
["Dia 05","Dia da Papiloscopia"]
["Dia 07","Dia do Gráfico"]
["Dia 10","Dia do Atleta Profissional"]
["Dia 10","Criação da Casa da Moeda"]
["Dia 11","Dia do Zelador"]
["Dia 11","Dia Mundial do Enfermo"]
["Dia 12","Carnaval"]
["Dia 12","Dia Estadual do Ministério Público (SP)"]
["Dia 13","Cinzas"]
["Dia 13","Dia da Criação do IBGE"]
["Dia 13","Dia do Surdo-Mudo"]
["Dia 14","Dia Internacional do Amor (Valentine's Day)"]
["Dia 16","Dia do Repórter"]
["Dia 18","Início da Semana Nacional Contra o Alcoolismo"]
["Dia 19","Dia do Esportista"]
["Dia 21","Data Festiva do Exército"]
["Dia 22","Dia da Criação do IBAMA"]
["Dia 23","Dia do Surdo-Mudo"]
["Dia 23","Dia Nacional do Rotary (Dia do Rotariano)"]
["Dia 24","Promulgação da primeira Constituição Republicana em 1891"]
["Dia 25","Criação do Ministério das Comunicações"]
["Dia 27","Dia do Agente Fiscal da Receita Federal"]
["Dia 27","Dia do Idoso"]
["Dia 27","Dia Nacional do Livro Didático"]
[]
["MARÇO"]
["Dia 01","Fundação da Cidade do Rio de Janeiro em 1565"]
["Dia 01","Dia do Turismo Ecológico"]
["Dia 01","Dia da Vindima"]
["Dia 02","Dia Nacional do Turismo"]
["Dia 03","Dia do Meteorologista"]
["Dia 03","Dia dos Dirigentes das Sociedades Desportivas, Culturais e Assistenciais"]
["Dia 04","Dia do Filatelista Brasileiro"]
["Dia 05","Dia Mundial da Oração (primeira sexta-feira do mês)"]
["Dia 07","Dia dos Fuzileiros Navais"]
["Dia 08","Dia Internacional da Mulher"]
["Dia 09","Dia das Sociedades de Amigos de Bairro"]
["Dia 10","Dia do Telefone"]
["Dia 10","Dia do Sogro"]
["Dia 10","Dia do Conservador. "]
["Dia 11","Dia do Motociclista"]
["Dia 12","Dia Nacional do Bibliotecário"]
["Dia 12","Fundação da cidade de Recife em 1537"]
["Dia 12","Semana Nacional da Biblioteca"]
["Dia 12","Dia do Industrial do Café"]
["Dia 14","Dia do Vendedor de Livros"]
["Dia 14","Dia Nacional da Poesia"]
["Dia 14","Dia do Agente Autônomo de Investimentos"]
["Dia 15","Dia Mundial do Consumidor"]
["Dia 17","Dia Internacional da Marinha"]
["Dia 19","Dia da Escola"]
["Dia 19","Dia do Artesão"]
["Dia 19","Dia do Funcionário Público Municipal"]
["Dia 19","Dia do Livro"]
["Dia 19","Dia de São José"]
["Dia 19","Dia do Consertador"]
["Dia 19","Dia do Carpinteiro"]
["Dia 19","Dia do Marceneiro"]
["Dia 19","Dia do Consertador. "]
["Dia 19","Dia do Funcionário Público Municipal. "]
["Dia 19","Dia do Bibliotecário. "]
["Dia 19","Dia Nacional do Artesão. "]
["Dia 20","Início do Outono"]
["Dia 21","Dia Internacional para a Eliminação da Discriminação Racial"]
["Dia 21","Dia da Infância"]
["Dia 21","Dia Internacional da Floresta"]
["Dia 21","Dia Universal do Teatro"]
["Dia 22","Dia Mundial da Água (ONU)"]
["Dia 23","Dia do Meteorológico Mundial"]
["Dia 23","Dia da Juventude"]
["Dia 26","Dia do Cacau"]
["Dia 27","Dia do Circo"]
["Dia 28","Dia do Diagramador"]
["Dia 28","Dia do Revisor"]
["Dia 29 ","- Paixão de Cristo"]
["Dia 31","Aniversário da Revolução de 1964"]
["Dia 31","Dia da Integração Nacional"]
["Dia 31","Dia da Saúde e Nutrição"]
["Dia 31","Páscoa"]
["ABRIL"]
["Dia 01","Dia do Humanismo"]
["Dia 01","Dia da Mentira"]
["Dia 02","Dia Internacional do Livro Infantil"]
["Dia 04","Dia Nacional do Parkinsoniano"]
["Dia 05","Dia do Propagandista"]
["Dia 07","Dia do Corretor"]
["Dia 07","Dia do Jornalismo"]
["Dia 07","Dia do Médico Legista"]
["Dia 07","Dia Mundial da Saúde"]
["Dia 07","Fundação da Associação Brasileira de Imprensa - ABI"]
["Dia 08","Dia da Natação"]
["Dia 08","Dia do Correio"]
["Dia 08","Dia Mundial do Combate ao Câncer"]
["Dia 08","Dia do Desbravador "]
["Dia 08","Dia do Profissional de Marketing (ADVB) "]
["Dia 09","Endoenças"]
["Dia 09","Dia Nacional do Aço"]
["Dia 10","Dia da Engenharia - Exercito Brasileiro"]
["Dia 10","Fundação do Exercito da Salvação"]
["Dia 11","Aniversário da Organização Internacional do Trabalho"]
["Dia 12","Dia da Intendência - Exercito Brasileiro"]
["Dia 12","Dia da Obstetriz"]
["Dia 12","Dia do Obstetra. "]
["Dia 13","Aniversario da Loteria Esportiva, criada em 1970"]
["Dia 13","Dia do Office-Boy"]
["Dia 13","Dia dos Jovens"]
["Dia 13","Dia Internacional do Beijo"]
["Dia 13","Dia do Hino Nacional"]
["Dia 14","Dia da América"]
["Dia 14","Dia Pan-Americano"]
["Dia 14","Dia Pan-Americano do Café"]
["Dia 15","Dia da Conservação do Solo"]
["Dia 15","Dia do Desarmamento Infantil"]
["Dia 15","Dia Mundial do Desenhista"]
["Dia 16","Dia dos Lions"]
["Dia 18","Dia de Monteiro Lobato"]
["Dia 18","Dia Nacional do Livro Infantil"]
["Dia 18","Dia do Amigo"]
["Dia 18","Dia Mundial do Rádio Amador. "]
["Dia 19","Dia do Índio"]
["Dia 19","Dia do Exército Brasileiro"]
["Dia 20","Dia do Diplomata"]
["Dia 21","Dia da Latinidade"]
["Dia 21","Dia da Polícia Civil e Militar"]
["Dia 21","Dia da Terra (Internacional)"]
["Dia 21","Dia de Tiradentes"]
["Dia 21","Inconfidência Mineira"]
["Dia 21","Dia do Metalúrgico"]
["Dia 21","Fundação da cidade de Brasília - DF (1960)"]
["Dia 22","Dia da Aviação de Caça"]
["Dia 22","Dia da Comunidade luso-brasileira"]
["Dia 22","Dia da Terra"]
["Dia 22","Dia da Força Aérea Brasileira"]
["Dia 22","Dia do Descobrimento do Brasil em 1500"]
["Dia 23","Dia de São Jorge"]
["Dia 23","Dia Mundial do Escoteiro"]
["Dia 24","Dia do Agente de Viagem"]
["Dia 24","Dia Internacional do Jovem Trabalhador"]
["Dia 25","Dia da Organização das Nações Unidas"]
["Dia 25","Dia do Contabilista"]
["Dia 25","Dia Mundial das Vocações Sacerdotais"]
["Dia 25","Dia Internacional do Rádio Amador"]
["Dia 26","Celebração da Primeira Missa no Brasil"]
["Dia 26","Dia do Goleiro"]
["Dia 26","Dia Mundial das Nações"]
["Dia 27","Dia da Empregada Doméstica"]
["Dia 27","Dia do Sacerdote"]
["Dia 27","Dia Mundial do Teatro"]
["Dia 27","Dia do Educador Sanitarista"]
["Dia 28","Dia da Educação"]
["Dia 28","Dia da Sogra"]
["Dia 28","Dia do Sacerdote. "]
["Dia 29","Dia da Juventude Operaria Católica"]
["Dia 30","Dia da OEA - Organização dos Estados Americanos"]
["Dia 30","Dia do Ferroviário"]
["Dia 30","Dia Nacional da Mulher"]
["Dia 30","Inauguração da Primeira Estrada de Ferro no Brasil"]
[]
["MAIO"]
["2o. Domingo","Dia das Mães. "]
["Dia 01","Dia Mundial do Trabalho (feriado Internacional)"]
["Dia 02","Dia Nacional do Ex-Combatente"]
["Dia 03","Dia do Sertanejo"]
["Dia 03","Dia do Parlamento"]
["Dia 03","Dia do Solo"]
["Dia 05","Dia de Rondon"]
["Dia 05","Dia do Pintor"]
["Dia 05","Dia do Trabalhador Preso"]
["Dia 05","Dia Nacional das Comunicações"]
["Dia 05","Dia Nacional do Expedicionário"]
["Dia 05","Dia da Comunidade"]
["Dia 05","Dia do Campo"]
["Dia 06","Dia do Cartógrafo"]
["Dia 06","Dia do Engenheiro Cartógrafo "]
["Dia 06","Dia do Taquígrafo"]
["Dia 07","Dia do Oftalmologista"]
["Dia 07","Dia do Silêncio"]
["Dia 08","Dia da Vitória"]
["Dia 08","Dia do Profissional de Marketing"]
["Dia 08","Dia do Artista Plástico"]
["Dia 08","Dia Internacional da Cruz Vermelha"]
["Dia 08","Dia do Pintor"]
["Dia 10","Dia da Cavalaria"]
["Dia 10","Dia do Campo"]
["Dia 10","Dia do Guia de Turismo"]
["Dia 10","Dia da Cozinheira"]
["Dia 11","Dia da Integração do Telégrafo no Brasil"]
["Dia 11","Dia do Barbeiro. "]
["Dia 12","Dia da Enfermagem"]
["Dia 12","Dia Mundial da Enfermeira"]
["Dia 12","Dia das Mães"]
["Dia 12","Dia do Engenheiro Militar"]
["Dia 13","Dia da Abolição da Escravatura"]
["Dia 13","Criação da Biblioteca Nacional"]
["Dia 13","Dia da Estrada de Rodagem"]
["Dia 13","Dia da Fraternidade Brasileira"]
["Dia 13","Dia do Automóvel"]
["Dia 13","Dia da Imprensa Nacional"]
["Dia 13","Dia do Zootecnista"]
["Dia 14","Dia Continental do Seguro"]
["Dia 14","Dia do Segurador. "]
["Dia 15","Dia da Assistência Social / Dia do Assistente Social"]
["Dia 15","Dia Nacional de Controle de Infecção Hospitalar"]
["Dia 15","Dia do Gerente Bancário"]
["Dia 15","Dia do Combate a Infecção Hospitalar"]
["Dia 16","Dia do Gari"]
["Dia 17","Dia Internacional de Telecomunicações"]
["Dia 18","Dia dos Vidreiros"]
["Dia 18","Dia Internacional dos Museus"]
["Dia 18","Dia Nacional de Combate ao Abuso e à Exploração Sexual de Crianças e Adolescentes"]
["Dia 20","Dia do Comissário de Menores"]
["Dia 20","Dia Nacional do Medicamento Genérico"]
["Dia 21","Ascensão do Senhor"]
["Dia 21","Dia da Língua Nacional"]
["Dia 22","Dia do Apicultor"]
["Dia 22","Dia do Economiário. "]
["Dia 23","Dia da Juventude Constitucionalista"]
["Dia 23","Dia da Indústria"]
["Dia 24","Dia da Infantaria"]
["Dia 24","Dia do Café"]
["Dia 24","Dia do Datilógrafo"]
["Dia 24","Dia do Detento"]
["Dia 24","Dia do Telegrafista"]
["Dia 24","Dia do Vestibulando"]
["Dia 25","Dia da Indústria "]
["Dia 25","Dia do Trabalhador Industrial. "]
["Dia 25","Dia do Industrial"]
["Dia 25","Dia do Massagista"]
["Dia 25","Dia do Trabalhador Rural"]
["Dia 26","Dia do Revendedor Lotérico"]
["Dia 27","Dia do Profissional Liberal"]
["Dia 27","Dia Nacional da Mata Atlântica"]
["Dia 27","Dia Mundial dos Meios de Comunicação"]
["Dia 28","Dia do Ceramista"]
["Dia 29","Dia do Estatístico"]
["Dia 29","Dia do Geógrafo"]
["Dia 30","Dia das Bandeirantes"]
["Dia 30","Dia do Geólogo"]
["Dia 30","Dia da Decoração"]
["Dia 30","Dia de Corpus Christi"]
["Dia 31","Dia Mundial sem Tabaco"]
["Dia 31","Dia do Espírito Santo"]
["Dia 31","Dia do Comissário de Bordo"]
["Dia 31","Dia da Aeromoça"]
["Dia 31","Dia Mundial das Comunicações Sociais"]
[]
["JUNHO"]
["Dia 01","Dia Nacional da Imprensa"]
["Dia 01","Dia da primeira Transmissão de TV no Brasil - 1950"]
["Dia 01","Dia de Caxias"]
["Dia 02","Dia Nacional da Imunização"]
["Dia 03","Dia Mundial do Administrador de Pessoal (RH)"]
["Dia 04","Dia Mundial das Crianças Vítimas de Agressão"]
["Dia 04","Dia Nacional da Família na Escola"]
["Dia 05","Dia da Ecologia"]
["Dia 05","Dia Mundial do Meio Ambiente"]
["Dia 07","Dia da Liberdade de Imprensa"]
["Dia 08","Dia do Citricultor"]
["Dia 09","Dia do Porteiro"]
["Dia 09","Dia do Tênis e do Tenista (esporte)"]
["Dia 09","Dia Nacional de Anchieta"]
["Dia 10","Dia da Artilharia"]
["Dia 10","Dia da Língua Portuguesa"]
["Dia 10","Dia da Raça"]
["Dia 10","Dia Internacional da Liberdade de Imprensa"]
["Dia 11","Batalha Naval do Riachuelo"]
["Dia 11","Dia da Marinha Brasileira"]
["Dia 11","Dia do Educador Sanitário"]
["Dia 11","Dia da Televisão"]
["Dia 12","Dia do Correio Aéreo Nacional"]
["Dia 12","Dia dos Namorados"]
["Dia 12","Dia do Enxadrista ( Jogador de Xadrez ). "]
["Dia 13","Dia de Santo Antônio"]
["Dia 13","Dia do Turista"]
["Dia 14","Dia do Solista"]
["Dia 14","Dia Universal de Deus"]
["Dia 14","Dia do Profissional de Relações Públicas"]
["Dia 15","Dia do Paleontólogo"]
["Dia 16","Dia da Unidade Nacional"]
["Dia 17","Dia do Funcionário Público Aposentado"]
["Dia 17","Dia Mundial da Luta Contra a Desertificação"]
["Dia 18","Dia da Imigração Japonesa"]
["Dia 18","Dia do Químico"]
["Dia 18","Dia do Profissional de Marketing (PROPEG). "]
["Dia 19","Dia do Cinema Brasileiro"]
["Dia 19","Dia do Vigilante"]
["Dia 19","Dia do Imigrante"]
["Dia 20","Dia do Revendedor"]
["Dia 21","Dia da Mídia"]
["Dia 21","Dia do Mel"]
["Dia 21","Dia do Migrante"]
["Dia 21","Dia Nacional do Luto"]
["Dia 21","Dia Universal Olímpico"]
["Dia 21","Início do Inverno"]
["Dia 21","Dia Internacional dos Ex-Combatentes"]
["Dia 21","Dia do Profissional de Marketing. "]
["Dia 22","Dia do Aeroviário"]
["Dia 22","Dia do Gráfico (Sindicato Patronal)"]
["Dia 22","Dia do Orquidófilo. "]
["Dia 23","Dia do Lavrador"]
["Dia 24","Dia da Comunidade Britânica"]
["Dia 24","Dia das Empresas Gráficas"]
["Dia 24","Dia de São João"]
["Dia 24","Dia do Cabloco"]
["Dia 24","Dia Internacional do Leite"]
["Dia 25","Dia do Quilo"]
["Dia 25","Dia do Migrante"]
["Dia 26","Dia Nacional de Combate às Drogas"]
["Dia 27","Dia da Revolução Espiritual"]
["Dia 27","Dia dos Artista Líricos"]
["Dia 27","Dia Nacional do Progresso"]
["Dia 27","Dia Internaconal do Diabético"]
["Dia 28","Dia da Renovação Espiritual"]
["Dia 29","Dia Internacional do Orgulho Gay"]
["Dia 29","Dia da Telefonista"]
["Dia 29","Dia de São Pedro"]
["Dia 29","Dia do Escritor Paulista"]
["Dia 29","Dia do Papa"]
["Dia 29","Dia do Pescador"]
["Dia 30","Dia do Economiário"]
["Dia 30","Dia do Caminhoneiro"]
["JULHO"]
["Dia 01","Início da Semana de Prevenção Contra Incêndios"]
["Dia 01","Dia da Vacina BCG"]
["Dia 01","Instituição do Real como Unidade Monetária - 1994"]
["Dia 02","Dia do Hospital"]
["Dia 02","Dia dos Bombeiros Brasileiros"]
["Dia 03","Dia do Fuzileiro Naval"]
["Dia 04","Dia Internacional do Cooperativismo"]
["Dia 04","Dia do Operador de Telemarketing"]
["Dia 06","Criação do IBGE - Instituto Brasileiro de Geografia e Estatística"]
["Dia 08","Dia do Panificador"]
["Dia 08","Início da Semana Nacional da Educação"]
["Dia 09","Promulgação da Constituição Republicana em 1932"]
["Dia 09","Dia do Soldado Constitucionalista (Feriado na cidade de S.Paulo)"]
["Dia 09","Dia Internacional do Desarmamento"]
["Dia 09","Dia do Protético"]
["Dia 10","Dia da Pizza em São Paulo"]
["Dia 10","Dia dos Trabalhadores em Serviços Telefônicos"]
["Dia 11","Dia Mundial da População"]
["Dia 11","Dia do Rondonista"]
["Dia 12","Dia do Engenheiro Florestal. "]
["Dia 13","Dia do Engenheiro de Saneamento"]
["Dia 13","Dia dos Cantores e Compositores Sertanejos"]
["Dia 13","Dia Mundial do Rock"]
["Dia 14","Dia da Liberdade do Pensamento"]
["Dia 14","Dia do Propagandista de Laboratório"]
["Dia 15","Dia Nacional dos Clubes"]
["Dia 15","Dia Internacional do Homem"]
["Dia 16","Dia do Comerciante"]
["Dia 16","Dia Mundial da Alimentação"]
["Dia 17","Dia do Protetor de Florestas"]
["Dia 18","Dia da Coroação de D. Pedro"]
["Dia 18","Dia dos Veteranos de Guerra. "]
["Dia 19","Dia da Caridade"]
["Dia 19","Dia da Junta Comercial"]
["Dia 19","Dia Nacional do Futebol"]
["Dia 20","Dia do Revendedor (de gasolina)"]
["Dia 20","Dia Internacional da Amizade"]
["Dia 20","Dia Panamericano do Engenheiro"]
["Dia 20","Dia da Primeira Viagem a Lua (1969)"]
["Dia 20","Dia do Revendedor de Petróleo e Derivados. "]
["Dia 20","Dia da Vovó. "]
["Dia 23","Dia da Declaração da Maioridade de D. Pedro II - 1840"]
["Dia 23","Dia do Guarda Rodoviário"]
["Dia 25","Dia de São Cristóvão"]
["Dia 25","Dia do Colono"]
["Dia 25","Dia do Escritor "]
["Dia 25","Dia do Motorista"]
["Dia 25","Dia do Carreteiro. "]
["Dia 25","Dia do Taxista. "]
["Dia 26","Dia dos Avós. "]
["Dia 26","Dia da Vovó"]
["Dia 27","Dia do Motociclista"]
["Dia 27","Dia do Despachante"]
["Dia 27","Dia da Prevenção de Acidentes de Trabalho"]
["Dia 28","Dia do Agricultor"]
["Dia 29","Dia do Hoteleiro. "]
["Dia 31","Dia Nacional do Outdoor"]
[]
["AGOSTO"]
["2o. Domingo","Dia dos Pais. "]
["Dia 01","Dia Nacional do Selo"]
["Dia 01","Dia do Cerealista. "]
["Dia 02","Dia Internacional do Folclore"]
["Dia 03","Dia do Tintureiro"]
["Dia 03","Dia do Capoeirista"]
["Dia 04","Dia do Sacerdote. "]
["Dia 05","Dia Nacional da Saúde"]
["Dia 05","Dia da Farmácia"]
["Dia 08","Dia dos Bandeirantes"]
["Dia 11","Dia da Consciência Nacional"]
["Dia 11","Dia da Televisão"]
["Dia 11","Dia do Advogado"]
["Dia 11","Dia do Direito"]
["Dia 11","Dia do Estudante"]
["Dia 11","Dia do Garçom"]
["Dia 11","Dia do Empregado Hoteleiro"]
["Dia 11","Dia do Magistrado"]
["Dia 11","Dia da Pintura"]
["Dia 11","Dia Internacional da Logosofia"]
["Dia 11","Dia dos Pais"]
["Dia 12","Dia da Padroeira da Televisão - Santa Clara de Assis"]
["Dia 12","Dia Nacional das Artes"]
["Dia 13","Dia do Encarcerado "]
["Dia 13","Dia do Economista"]
["Dia 13","Dia do Pensamento"]
["Dia 14","Dia da Unidade Humana"]
["Dia 14","Dia do Controle da Poluição Industrial"]
["Dia 14","Dia do Artista Plástico. "]
["Dia 15","Dia do Jornaleiro (ESG). "]
["Dia 15","Assunção de Nossa Senhora"]
["Dia 15","Dia da Informática"]
["Dia 15","Dia dos Solteiros"]
["Dia 15","Dia do Jornaleiro"]
["Dia 18","Início da Semana do Exercito"]
["Dia 19","Dia do Historiador"]
["Dia 19","Dia do Artista de Teatro"]
["Dia 19","Dia Mundial da Fotografia"]
["Dia 20","Dia do Maçom"]
["Dia 21","Dia da Habitação"]
["Dia 22","Dia do Folclore"]
["Dia 22","Dia do Excepcional"]
["Dia 22","Dia do Supervisor Educacional. "]
["Dia 23","Dia da Injustiça"]
["Dia 24","Dia da Infância"]
["Dia 24","Dia de São Bartolomeu"]
["Dia 24","Dia dos Artistas"]
["Dia 24","Dia da Infância"]
["Dia 25","Dia do Exercito Brasileiro"]
["Dia 25","Dia do Feirante"]
["Dia 25","Dia do Soldado"]
["Dia 26","Dia da Igualdade da Mulher"]
["Dia 27","Dia do Corretor de Imóveis"]
["Dia 27","Dia Nacional do Psicólogo"]
["Dia 27","Dia do Peão de Boiadeiro"]
["Dia 28","Dia da Avicultura"]
["Dia 28","Dia Nacional dos Bancários"]
["Dia 28","Dia do Voluntariado"]
["Dia 29","Dia Nacional de Combate ao Fumo"]
["Dia 31","Dia do Nutricionista"]
["Dia 31","Dia do Catequista. "]
[]
["SETEMBRO"]
["Dia 01","Dia do Profissional de Educação Física"]
["Dia 01","Início da Semana da Pátria"]
["Dia 02","Dia do Repórter Fotográfico"]
["Dia 02","Dia Internacional do Livro Infantil"]
["Dia 02","Dia do Florista"]
["Dia 03","Dia do Biólogo. "]
["Dia 04","Dia do Guarda Civil. "]
["Dia 04","Dia do Serventuário. "]
["Dia 05","Dia do Oficial de Justiça. "]
["Dia 05","Dia do Oficial de Farmácia"]
["Dia 05","Dia da Amazônia"]
["Dia 06","Dia do Alfaiate"]
["Dia 06","Dia do Barbeiro"]
["Dia 06","Dia do Cabeleireiro"]
["Dia 07","Independência do Brasil em 1822"]
["Dia 08","Dia Nacional da Alfabetização"]
["Dia 09","Dia do Administrador"]
["Dia 09","Dia do Médico Veterinário"]
["Dia 10","Dia da Imprensa"]
["Dia 13","Dia do Agrônomo. "]
["Dia 14","Dia da Cruz"]
["Dia 14","Dia do Frevo"]
["Dia 15","Dia do Musicoterapeuta. "]
["Dia 16","Dia Internacional da Prevenção da Camada de Ozônio"]
["Dia 17","Dia da Compreensão Mundial"]
["Dia 17","Dia do Transportador Rodoviário de Carga. "]
["Dia 18","Promulgação da Constituição do Brasil em 1946"]
["Dia 18","Dia dos Símbolos Nacionais"]
["Dia 18","Dia do Perdão"]
["Dia 19","Dia de São Genaro"]
["Dia 19","Dia do Teatro"]
["Dia 19","Dia do Comprador"]
["Dia 20","Dia do Gaúcho"]
["Dia 20","Dia do Funcionário Municipal"]
["Dia 20","Dia do Policial Civil"]
["Dia 21","Dia da Árvore"]
["Dia 21","Dia do Fazendeiro"]
["Dia 21","Dia do Radio"]
["Dia 21","Dia do Radialista"]
["Dia 21","Dia Nacional da Radiodifusão"]
["Dia 21","Dia do Contador"]
["Dia 22","Dia da Juventude no Brasil"]
["Dia 22 ou 26","Dia do Técnico Agropecuário"]
["Dia 22","Dia da Defesa da Fauna"]
["Dia 22","Dia dos Amantes. "]
["Dia 23","Início da Primavera"]
["Dia 24","Dia do Soldador"]
["Dia 25","Dia do Trânsito"]
["Dia 25","Dia da Radiofusão"]
["Dia 26","Dia Internacional de Relações Publicas"]
["Dia 27","Dia de Cosme e Damião"]
["Dia 27","Dia do Ancião"]
["Dia 27","Dia do Encanador"]
["Dia 27","Dia Mundial do Turismo"]
["Dia 27","Dia do Bacharel de Turismo"]
["Dia 27","Dia da Bíblia (último domingo do mês, comemoração católica)"]
["Dia 27","Dia Internacional do Idoso"]
["Dia 27","Dia da MPB"]
["Dia 27","Dia do Cantor"]
["Dia 27","Dia do Profissional de Educação Física. "]
["Dia 28","Dia do Jornaleiro. "]
["Dia 28","Dia da Lei do Sexagenário"]
["Dia 28","Dia da Lei do Ventre Livre"]
["Dia 28","Dia da Mãe Preta"]
["Dia 29","Dia do Anunciante"]
["Dia 29","Dia do Petróleo"]
["Dia 29","Dia do Professor de Educação Física"]
["Dia 29","Dia do Policial"]
["Dia 30","Dia da Secretária"]
["Dia 30","Dia Internacional da Navegação"]
["Dia 30","Dia Mundial do Tradutor"]
["Dia 30","Dia Nacional do Jornaleiro"]
["Dia 30","Dia do Ferroviário. "]
["OUTUBRO"]
["Dia 01","Início da Semana de Proteção aos Animais"]
["Dia 01","Dia da Esquadra"]
["Dia 01","Dia de Santa Terezinha"]
["Dia 01","Dia Representante Comercial"]
["Dia 01","Dia Nacional do Vereador"]
["Dia 01","Dia Panamericano do Vendedor"]
["Dia 01","Dia do Vendedor. "]
["Dia 01","Dia do Agente Comercial. "]
["Dia 01","Dia do Prefeito. "]
["Dia 01","Dia do Barman. "]
["Dia 02","Dia Nacional do Habitat"]
["Dia 03","Dia das Abelhas"]
["Dia 03","Dia do Latino-Americano"]
["Dia 03","Dia do Petróleo Brasileiro"]
["Dia 03","Dia Mundial do Dentista"]
["Dia 04","Dia da Natureza"]
["Dia 04","Dia de São Francisco de Assis"]
["Dia 04","Dia do Barman"]
["Dia 04","Dia do Cão"]
["Dia 04","Dia do Poeta"]
["Dia 04","Dia do Radio Interamericano"]
["Dia 04","Dia Internacional da Ecologia"]
["Dia 04","Dia da Anestia"]
["Dia 04","Dia dos Animais"]
["Dia 05","Dia das Aves"]
["Dia 05","Dia Mundial dos Animais"]
["Dia 05","Promulgação da Nova Constituição do Brasil - 1988"]
["Dia 06","Dia do Tecnólogo"]
["Dia 07","Dia do Compositor Brasileiro"]
["Dia 07","Dia dos Idosos"]
["Dia 08","Dia do Nordestino"]
["Dia 08","Dia Mundial do Leonino"]
["Dia 09","Dia Postal Mundial"]
["Dia 09","Dia do Atletismo"]
["Dia 10","Dia Mundial do Lions Clube"]
["Dia 10","Dia do Empresário Brasileiro"]
["Dia 10","Dia do Representante Comercial. "]
["Dia 11","Dia do Deficiente Físico"]
["Dia 11","Dia do Teatro Municipal"]
["Dia 12","Descobrimento da América"]
["Dia 12","Dia da Aclamação de D. Pedro I"]
["Dia 12","Dia da Cirurgia Infantil"]
["Dia 12","Dia da Criança"]
["Dia 12","Inauguração do Cristo Redentor"]
["Dia 12","Dia de Nossa Senhora Aparecida - Padroeira do Brasil"]
["Dia 12","Dia do Atletismo"]
["Dia 12","Dia do Engenheiro Agrônomo"]
["Dia 12","Dia do Agrônomo. "]
["Dia 12","Dia do Mar"]
["Dia 12","Dia do Corretor de Seguros. "]
["Dia 13","Dia do Fisioterapeuta"]
["Dia 13","Dia da Terapia Ocupacional"]
["Dia 14","Dia Nacional da Pecuária"]
["Dia 15","Dia da Normalista"]
["Dia 15","Dia do Professor"]
["Dia 15","Dia do Educador Ambiental"]
["Dia 15","Dia do Securitário. "]
[]
["Dia 16","Dia do Anestesista. "]
["Dia 16","Dia Mundial da Alimentação"]
["Dia 17","Dia da Industria Aeronáutica Brasileira"]
["Dia 17","Dia do Eletricista"]
["Dia 17","Início da Semana da Asa"]
["Dia 17","Dia do Maquinista"]
["Dia 17","Dia da Apicultura"]
["Dia 17","Dia do Profissional de Propaganda (APP). "]
["Dia 18","Dia do Estivador"]
["Dia 18","Dia do Médico"]
["Dia 18","Dia do Pintor (de parede, de carro)"]
["Dia 18","Dia Internacional do Controlador de Vôo"]
["Dia 18","Dia do Corretor de Seguros"]
["terceira segunda-feira","Dia do Securitario"]
["Dia 20","Dia do Arquivista. "]
["Dia 20","Dia do Poeta. "]
["Dia 20","Dia Internacional do Controlador de Tráfego Aéreo. "]
["Dia 21","Dia do Mackenzie"]
["Dia 21","Dia do Contato"]
["Dia 21","Dia da Homeopatia"]
["Dia 22","Dia do Radioamador "]
["Dia 23","Dia da Aviação"]
["Dia 23","Dia do Aviador Brasileiro"]
["Dia 24","Dia das Nações Unidas - ONU"]
["Dia 24","Dia Mundial do Desenvolvimento"]
["Dia 25","Dia da Democracia"]
["Dia 25","Dia da Saúde Dentária / Dia Nacional da Saúde Bucal"]
["Dia 25","Dia das Missões"]
["Dia 25","Dia do Dentista Brasileiro"]
["Dia 25","Dia do Sapateiro"]
["Dia 25","Dia da Construção Civil"]
["Dia 26","Dia do Músico. "]
["Dia 26","Dia do Trabalhador da Construção Civil. "]
["Dia 28","Dia de São Judas Tadeu"]
["Dia 28","Dia do Funcionário Publico"]
["Dia 28","Dia da Universidade Católica"]
["Dia 29","Dia Nacional do Livro"]
["Dia 30","Dia do Balconista"]
["Dia 30","Dia do Comerciario"]
["Dia 30","Dia da Decoração"]
["Dia 31","Dia Mundial da Poupança"]
["Dia 31","Dia Mundial do Comissário de Vôo"]
["Dia 31","Dia das Bruxas"]
[]
["NOVEMBRO"]
["Dia 01","Dia de Todos os Santos"]
["Dia 02","Dia de Finados (feriado)"]
["Dia 02","Dia da Astronomia"]
["Dia 04","Dia do Inventor"]
["Dia 04","Dia do Orientador Educacional"]
["Dia 05","Dia da Ciência"]
["Dia 05","Dia da Cultura"]
["Dia 05","Dia do Cinema Brasileiro"]
["Dia 05","Dia do Radioamador"]
["Dia 05","Dia do Técnico em Eletrônica"]
["Dia 07","Dia de Ação Católica"]
["Dia 07","Dia Nacional dos Tribunais de Conta"]
["Dia 08","Dia do Aposentado"]
["Dia 08","Dia Mundial do Urbanismo"]
["Dia 09","Dia do Hoteleiro"]
["Dia 09","Dia do Município"]
["Dia 09","Dia do Manequim"]
["Dia 09","Dia do Radiologista"]
["Dia 10","Dia do Trigo"]
["Dia 10","Dia da Industria Automobilistica"]
["Dia 11","Dia do Soldado Desconhecido"]
["Dia 11","Dia do Supermercado"]
["Dia 12","Dia do Diretor Escolar. "]
["Dia 14","Dia do Bandeirante"]
["Dia 14","Dia da Alfabetização"]
["Dia 15","Proclamação da República"]
["Dia 15","Dia do Desporto Amador"]
["Dia 15","Dia do Joalheiro"]
["Dia 16","Dia do Não Fumar"]
["Dia 16","Dia do Policial. "]
["Dia 17","Dia Internacional do Estudante"]
["Dia 17","Dia da Criatividade"]
["Dia 19","Dia da Bandeira"]
["Dia 20","Dia do Datiloscopista Brasileiro"]
["Dia 20","Dia Nacional da Consciência Negra"]
["Dia 20","Dia do Auditor Interno. "]
["Dia 20","Dia do Biomédico. "]
["Dia 21","Dia da Homeopatia e do Homeopata"]
["Dia 21","Dia das Saudações"]
["Dia 21","Dia do Diabético"]
["Dia 22","Dia da Solidariedade com o Povo Libanês"]
["Dia 22","Dia do Músico"]
["Dia 22","Dia Oficial da Música"]
["Dia 23","Dia do Livro"]
["Dia 25","Dia da Baiana do Acarajé"]
["Dia 25","Dia Nacional do Doador de Sangue"]
["Dia 27","Dia Internacional da Luta Contra o Câncer"]
["Dia 28","Dia Mundial de Ação de Graças"]
["Dia 28","Dia do Soldado Desconhecido"]
["Dia 30","Dia do Síndico"]
["DEZEMBRO"]
["1o. Domingo ","Dia do Casal. "]
["Dia 01","Dia Mundial de Prevenção contra AIDS"]
["Dia 01","Dia do Imigrante"]
["Dia 01","Dia do Numismata"]
["Dia 02","Dia Nacional da Astronomia"]
["Dia 02","Dia Nacional das Relações Públicas"]
["Dia 02","Dia Nacional do Samba"]
["Dia 02","Dia Panamericano da Saúde"]
["Dia 02","Dia do Bombeiro. "]
["Dia 04","Dia do Orientador Educacional"]
["Dia 04","Dia do Podólogo"]
["Dia 04","Dia do Trabalhador em Minas de Carvão"]
["Dia 04","Dia Mundial da Propaganda"]
["Dia 04","Dia do Publicitário"]
["Dia 04","Dia Nacional do Ministério Público"]
["Dia 05","Dia da Cruz Vermelha Brasileira"]
["Dia 05","Dia do Voluntário. "]
["Dia 07","Dia da Fundação da Associação Comercial de São Paulo - 1894"]
["Dia 07","Dia do Pau-Brasil"]
["Dia 08","Dia da Família"]
["Dia 08","Dia de lemanja em São Paulo e Paraíba"]
["Dia 08","Dia do Cronista Esportivo"]
["Dia 08","Dia da Justiça"]
["Dia 08","Dia da Imaculada Conceição"]
["Dia 08","Aniversário da Avenida Paulista - São Paulo - SP (1891)"]
["Dia 09","Dia da Criança Defeituosa"]
["Dia 09","Dia do Fonoáudiologo"]
["Dia 09","Dia do Alcoólatra Recuperado"]
["Dia 09","Dia do Cronista Esportivo. "]
["Dia 10","Dia da Declaração Universal dos Direitos Humanos"]
["Dia 10","Dia do Palhaço"]
["Dia 11","Dia do Arquiteto"]
["Dia 11","Dia do Engenheiro"]
["Dia 11","Dia do Engenheiro Agrônomo. "]
["Dia 11","Dia do Tango"]
["Dia 11","Dia do Agrônomo"]
["Dia 11","Dia do Agrimensor. "]
["Dia 13","Dia do Avaliador"]
["Dia 13","Dia do Cego "]
["Dia 13","Dia do Marinheiro"]
["Dia 13","Dia do Ótico"]
["Dia 14","Dia do Ministério Público"]
["Dia 14","Dia do Engenheiro de Pesca"]
["Dia 15","Dia do Jardineiro"]
["Dia 15","Dia do Esperanto"]
["Dia 15","Dia do Jornaleiro"]
["Dia 16","Dia do Reservista"]
["Dia 16","Dia do Teatro Amador"]
["Dia 19","Dia do Atleta Profissional"]
["Dia 20","Dia do Mecânico"]
["Dia 20","Dia da Bondade"]
["Dia 21","Dia do Atleta"]
["Dia 21","Início do Verão"]
["Dia 21","Dia do Artista Profissional. "]
["Dia 23","Dia do Vizinho"]
["Dia 23","Dia do Atleta Amador"]
["Dia 24","Dia do Órfão"]
["Dia 24","Dia Internacional do Perdão"]
["Dia 25","Natal"]
["Dia 26","Dia da Lembrança"]
["Dia 26","Dia do Pedreiro"]
["Dia 28","Dia do Salva-vidas"]
["Dia 28","Dia da Marinha Mercante"]
["Dia 31","Dia de São Silvestre (Reveillon)"]
["Dia 31","Dia da Esperança"]
["Dia 31","Reveillon (Meia-Noite)"]